[Event "*** SCC Grand Prix: Titled Tuesday Blitz"]
[Site "Chess.com"]
[Date "2020.09.08"]
[Round "6"]
[White "platy3"]
[Black "OminousOmen"]
[Result "0-1"]
[WhiteElo "2825"]
[BlackElo "2951"]
[TimeControl "180+1"]
[EndTime "11:07:52 PDT"]
[Termination "OminousOmen won on time"]

1. e4 {[%clk 0:03:00.9]} 1... Nf6 {[%clk 0:03:00]} 2. e5 {[%clk 0:03:00.7]} 2...
Nd5 {[%clk 0:03:00.5]} 3. d4 {[%clk 0:03:01.3]} 3... d6 {[%clk 0:03:00.9]} 4.
Nf3 {[%clk 0:03:01.9]} 4... Bg4 {[%clk 0:03:00.7]} 5. Be2 {[%clk 0:03:01.8]}
5... e6 {[%clk 0:03:00.8]} 6. O-O {[%clk 0:03:01.2]} 6... Be7 {[%clk 0:03:00.7]}
7. h3 {[%clk 0:02:59.3]} 7... Bh5 {[%clk 0:03:00.3]} 8. c4 {[%clk 0:02:57]} 8...
Nb6 {[%clk 0:03:00]} 9. exd6 {[%clk 0:02:54.3]} 9... cxd6 {[%clk 0:03:00.9]} 10.
Nc3 {[%clk 0:02:54.4]} 10... O-O {[%clk 0:03:00.9]} 11. b3 {[%clk 0:02:53.3]}
11... Nc6 {[%clk 0:02:55.5]} 12. Be3 {[%clk 0:02:48.5]} 12... Rc8 {[%clk
0:02:49]} 13. Rc1 {[%clk 0:02:47.4]} 13... d5 {[%clk 0:02:33.6]} 14. c5 {[%clk
0:02:37.3]} 14... Nd7 {[%clk 0:02:33.8]} 15. a3 {[%clk 0:02:37.9]} 15... Bxf3
{[%clk 0:02:17.5]} 16. Bxf3 {[%clk 0:02:38.8]} 16... Bg5 {[%clk 0:02:18]} 17. b4
{[%clk 0:02:34.7]} 17... Bxe3 {[%clk 0:02:14.9]} 18. fxe3 {[%clk 0:02:35.6]}
18... Qg5 {[%clk 0:02:14.6]} 19. Qd2 {[%clk 0:02:19.6]} 19... a6 {[%clk
0:01:51.3]} 20. Rb1 {[%clk 0:01:47.6]} 20... Ne7 {[%clk 0:01:15.2]} 21. Qd3
{[%clk 0:01:35.7]} 21... Ng6 {[%clk 0:00:44]} 22. b5 {[%clk 0:01:27.6]} 22...
axb5 {[%clk 0:00:35.6]} 23. Nxb5 {[%clk 0:01:27.9]} 23... b6 {[%clk 0:00:36]}
24. Nd6 {[%clk 0:01:19.6]} 24... Rc6 {[%clk 0:00:36.3]} 25. Qb5 {[%clk 0:01:10]}
25... Qxe3+ {[%clk 0:00:36.5]} 26. Kh1 {[%clk 0:01:10.4]} 26... Nb8 {[%clk
0:00:37.2]} 27. Nb7 {[%clk 0:00:47.3]} 27... bxc5 {[%clk 0:00:28.4]} 28. dxc5
{[%clk 0:00:48.2]} 28... Qxa3 {[%clk 0:00:26.7]} 29. Rfc1 {[%clk 0:00:45.5]}
29... Ne5 {[%clk 0:00:25.9]} 30. Be2 {[%clk 0:00:38.9]} 30... Nbd7 {[%clk
0:00:26.4]} 31. Ra1 {[%clk 0:00:24.7]} 31... Qe3 {[%clk 0:00:25.6]} 32. Bf1
{[%clk 0:00:25.2]} 32... g6 {[%clk 0:00:25.6]} 33. Re1 {[%clk 0:00:20.5]} 33...
Qf2 {[%clk 0:00:23.5]} 34. Re2 {[%clk 0:00:10]} 34... Qd4 {[%clk 0:00:23.5]} 35.
Rae1 {[%clk 0:00:09.8]} 35... Rb8 {[%clk 0:00:22.7]} 36. Rxe5 {[%clk 0:00:04.7]}
36... Nxe5 {[%clk 0:00:21.1]} 37. Rxe5 {[%clk 0:00:05.2]} 37... Rc7 {[%clk
0:00:12.6]} 38. c6 {[%clk 0:00:01.8]} 38... Qxe5 {[%clk 0:00:12]} 39. Qb6 {[%clk
0:00:02.5]} 39... Rbc8 {[%clk 0:00:11.5]} 40. Na5 {[%clk 0:00:02.3]} 40... Qa1
{[%clk 0:00:11.6]} 41. Kg1 {[%clk 0:00:02.2]} 41... Qc1 {[%clk 0:00:12]} 42. Kf2
{[%clk 0:00:01.5]} 42... Rxc6 {[%clk 0:00:12.4]} 0-1

[Event "*** SCC Grand Prix: Titled Tuesday Blitz"]
[Site "Chess.com"]
[Date "2020.09.08"]
[Round "6"]
[White "CzechmVIII"]
[Black "Kazmin_Dmitrij"]
[Result "1-0"]
[WhiteElo "2183"]
[BlackElo "2275"]
[TimeControl "180+1"]
[EndTime "11:07:52 PDT"]
[Termination "CzechmVIII won on time"]

1. e4 {[%clk 0:03:00.9]} 1... e5 {[%clk 0:02:58.4]} 2. Nf3 {[%clk 0:03:00.9]}
2... d6 {[%clk 0:02:58.3]} 3. d4 {[%clk 0:02:59.7]} 3... exd4 {[%clk 0:02:57.6]}
4. Nxd4 {[%clk 0:02:55.1]} 4... Nf6 {[%clk 0:02:55.1]} 5. Nc3 {[%clk 0:02:54.6]}
5... Be7 {[%clk 0:02:53.3]} 6. g3 {[%clk 0:02:54.8]} 6... O-O {[%clk 0:02:50.2]}
7. Bg2 {[%clk 0:02:55.1]} 7... Re8 {[%clk 0:02:44.9]} 8. O-O {[%clk 0:02:54.7]}
8... Bf8 {[%clk 0:02:43.6]} 9. Re1 {[%clk 0:02:52.7]} 9... c6 {[%clk 0:02:31.3]}
10. a4 {[%clk 0:02:49.2]} 10... Na6 {[%clk 0:02:24.4]} 11. h3 {[%clk 0:02:48.6]}
11... Nc5 {[%clk 0:02:21.1]} 12. a5 {[%clk 0:02:37.2]} 12... Bd7 {[%clk
0:02:15]} 13. Bf4 {[%clk 0:02:11]} 13... Ne6 {[%clk 0:02:01.2]} 14. Nxe6 {[%clk
0:02:03.9]} 14... Bxe6 {[%clk 0:01:59.2]} 15. Qd2 {[%clk 0:01:55.6]} 15... Nh5
{[%clk 0:01:16.5]} 16. Be3 {[%clk 0:01:49.1]} 16... Qd7 {[%clk 0:00:57.7]} 17.
Kh2 {[%clk 0:01:48.3]} 17... a6 {[%clk 0:00:32.4]} 18. Bb6 {[%clk 0:01:36.1]}
18... Nf6 {[%clk 0:00:24.1]} 19. Rad1 {[%clk 0:01:30]} 19... Qe7 {[%clk
0:00:22.2]} 20. Ne2 {[%clk 0:01:14.5]} 20... Nd7 {[%clk 0:00:21.8]} 21. Bd4
{[%clk 0:01:11.4]} 21... Ne5 {[%clk 0:00:19]} 22. Nf4 {[%clk 0:01:05.5]} 22...
Nc4 {[%clk 0:00:17.2]} 23. Qc1 {[%clk 0:01:05.5]} 23... Qc7 {[%clk 0:00:15.6]}
24. Nxe6 {[%clk 0:00:48.3]} 24... fxe6 {[%clk 0:00:15.6]} 25. b4 {[%clk
0:00:48.7]} 25... c5 {[%clk 0:00:14.7]} 26. bxc5 {[%clk 0:00:35]} 26... dxc5
{[%clk 0:00:14.8]} 27. Be3 {[%clk 0:00:32.8]} 27... Nxe3 {[%clk 0:00:13.7]} 28.
Rxe3 {[%clk 0:00:32.8]} 28... Qxa5 {[%clk 0:00:13.8]} 29. Qb2 {[%clk 0:00:28.6]}
29... Qc7 {[%clk 0:00:12.7]} 30. e5 {[%clk 0:00:23.4]} 30... Rab8 {[%clk
0:00:12.7]} 31. Red3 {[%clk 0:00:21.7]} 31... Red8 {[%clk 0:00:11.2]} 32. Rxd8
{[%clk 0:00:21.5]} 32... Rxd8 {[%clk 0:00:11.4]} 33. Rxd8 {[%clk 0:00:20.9]}
33... Qxd8 {[%clk 0:00:11.6]} 34. Qxb7 {[%clk 0:00:20.9]} 34... a5 {[%clk
0:00:11.5]} 35. Qe4 {[%clk 0:00:19.6]} 35... Qb6 {[%clk 0:00:09.9]} 36. Qc4
{[%clk 0:00:19.6]} 36... h6 {[%clk 0:00:07.6]} 37. h4 {[%clk 0:00:19]} 37... Be7
{[%clk 0:00:07.3]} 38. Bh3 {[%clk 0:00:19]} 38... Kf7 {[%clk 0:00:06.8]} 39. Bg4
{[%clk 0:00:19.1]} 39... g5 {[%clk 0:00:05.8]} 40. Bh5+ {[%clk 0:00:19]} 40...
Kg7 {[%clk 0:00:05.3]} 41. hxg5 {[%clk 0:00:17.7]} 41... Bxg5 {[%clk 0:00:03.9]}
42. Bg4 {[%clk 0:00:18.4]} 42... Kf7 {[%clk 0:00:03.6]} 43. Bh5+ {[%clk
0:00:19]} 43... Kg7 {[%clk 0:00:03.6]} 44. Qe4 {[%clk 0:00:19.4]} 44... Kf8
{[%clk 0:00:02]} 45. Qh7 {[%clk 0:00:17.8]} 1-0

[Event "*** SCC Grand Prix: Titled Tuesday Blitz"]
[Site "Chess.com"]
[Date "2020.09.08"]
[Round "6"]
[White "AntonovaNadezhda"]
[Black "VladaSviridova"]
[Result "0-1"]
[WhiteElo "2041"]
[BlackElo "2280"]
[TimeControl "180+1"]
[EndTime "11:07:52 PDT"]
[Termination "VladaSviridova won on time"]

1. d4 {[%clk 0:03:00.9]} 1... d5 {[%clk 0:02:59.9]} 2. Nf3 {[%clk 0:03:01.4]}
2... Nf6 {[%clk 0:02:59.7]} 3. e3 {[%clk 0:03:01.9]} 3... c5 {[%clk 0:02:56.8]}
4. c3 {[%clk 0:03:01.2]} 4... Nc6 {[%clk 0:02:55.8]} 5. dxc5 {[%clk 0:03:01.3]}
5... a5 {[%clk 0:02:51.7]} 6. Bb5 {[%clk 0:02:53.5]} 6... e6 {[%clk 0:02:50.1]}
7. b4 {[%clk 0:02:51.9]} 7... Bd7 {[%clk 0:02:47.7]} 8. a4 {[%clk 0:02:30]} 8...
axb4 {[%clk 0:02:43.9]} 9. Bxc6 {[%clk 0:02:28.5]} 9... Bxc6 {[%clk 0:02:43.1]}
10. cxb4 {[%clk 0:02:28.6]} 10... b6 {[%clk 0:02:42.6]} 11. Bb2 {[%clk
0:02:27.5]} 11... bxc5 {[%clk 0:02:41.2]} 12. b5 {[%clk 0:02:27.6]} 12... Bb7
{[%clk 0:02:41]} 13. O-O {[%clk 0:02:24.7]} 13... Bd6 {[%clk 0:02:38.4]} 14.
Nbd2 {[%clk 0:02:23.6]} 14... O-O {[%clk 0:02:37.6]} 15. Qc2 {[%clk 0:02:23.6]}
15... Nd7 {[%clk 0:02:33.4]} 16. Qc3 {[%clk 0:02:13.9]} 16... f6 {[%clk
0:02:29.1]} 17. a5 {[%clk 0:02:13]} 17... Bc8 {[%clk 0:01:36.7]} 18. e4 {[%clk
0:01:59.7]} 18... d4 {[%clk 0:01:33.6]} 19. Qb3 {[%clk 0:01:53.1]} 19... Qe7
{[%clk 0:01:22.4]} 20. Nc4 {[%clk 0:01:51.3]} 20... Bb7 {[%clk 0:01:12.2]} 21.
Rfe1 {[%clk 0:01:46.1]} 21... Kh8 {[%clk 0:01:06.9]} 22. a6 {[%clk 0:01:40.7]}
22... Bc8 {[%clk 0:01:04.3]} 23. h3 {[%clk 0:00:59.6]} 23... h6 {[%clk
0:00:59.1]} 24. Na5 {[%clk 0:00:43.6]} 24... Bc7 {[%clk 0:00:46.7]} 25. Nc6
{[%clk 0:00:38.6]} 25... Qd6 {[%clk 0:00:45.9]} 26. g3 {[%clk 0:00:33.7]} 26...
Bxa6 {[%clk 0:00:41.9]} 27. Nd2 {[%clk 0:00:16.7]} 27... Bxb5 {[%clk 0:00:21.1]}
28. Qxb5 {[%clk 0:00:14.3]} 28... Rab8 {[%clk 0:00:18.4]} 29. Nxb8 {[%clk
0:00:13.5]} 29... Rxb8 {[%clk 0:00:18.5]} 30. Qd3 {[%clk 0:00:11.5]} 30... Rxb2
{[%clk 0:00:18.1]} 31. Nc4 {[%clk 0:00:11.1]} 31... Qc6 {[%clk 0:00:11.6]} 32.
Nxb2 {[%clk 0:00:10.8]} 32... Ne5 {[%clk 0:00:10.8]} 33. Qd2 {[%clk 0:00:09.5]}
33... Bb6 {[%clk 0:00:08.6]} 34. Kg2 {[%clk 0:00:07.4]} 34... c4 {[%clk
0:00:08.5]} 35. Qe2 {[%clk 0:00:05.9]} 35... d3 {[%clk 0:00:07.3]} 36. Nxd3
{[%clk 0:00:04.6]} 36... Nxd3 {[%clk 0:00:06.4]} 37. Qd2 {[%clk 0:00:04.3]}
37... Nxf2 {[%clk 0:00:04.7]} 0-1

[Event "*** SCC Grand Prix: Titled Tuesday Blitz"]
[Site "Chess.com"]
[Date "2020.09.08"]
[Round "6"]
[White "SophieNikoladze"]
[Black "Happy1712Drummer"]
[Result "1/2-1/2"]
[WhiteElo "2253"]
[BlackElo "2410"]
[TimeControl "180+1"]
[EndTime "11:07:53 PDT"]
[Termination "Game drawn by repetition"]

1. d4 {[%clk 0:02:30.9]} 1... c6 {[%clk 0:03:00.9]} 2. e3 {[%clk 0:02:29.6]}
2... Nf6 {[%clk 0:02:57.6]} 3. Nf3 {[%clk 0:02:27.6]} 3... g6 {[%clk 0:02:44.9]}
4. b3 {[%clk 0:02:25.4]} 4... Bg7 {[%clk 0:02:41.9]} 5. Bb2 {[%clk 0:02:25.8]}
5... d5 {[%clk 0:02:34.2]} 6. Bd3 {[%clk 0:02:26]} 6... O-O {[%clk 0:02:30.8]}
7. Nbd2 {[%clk 0:02:25.3]} 7... Nbd7 {[%clk 0:02:26]} 8. Ne5 {[%clk 0:02:25.5]}
8... Nxe5 {[%clk 0:02:19.9]} 9. dxe5 {[%clk 0:02:24.2]} 9... Nd7 {[%clk
0:02:20.5]} 10. f4 {[%clk 0:02:22.9]} 10... f6 {[%clk 0:02:10.3]} 11. Nf3 {[%clk
0:01:54.2]} 11... Nc5 {[%clk 0:02:08.1]} 12. exf6 {[%clk 0:01:51.8]} 12... Nxd3+
{[%clk 0:02:03.8]} 13. cxd3 {[%clk 0:01:50.7]} 13... exf6 {[%clk 0:02:04.7]} 14.
O-O {[%clk 0:01:48.5]} 14... Re8 {[%clk 0:02:03.2]} 15. Qd2 {[%clk 0:01:47.3]}
15... Bg4 {[%clk 0:01:55.2]} 16. Nd4 {[%clk 0:01:39.4]} 16... Bd7 {[%clk
0:01:45.6]} 17. b4 {[%clk 0:01:33.4]} 17... a5 {[%clk 0:01:44.1]} 18. a3 {[%clk
0:01:32.8]} 18... Qb6 {[%clk 0:01:38.7]} 19. f5 {[%clk 0:01:13.2]} 19... axb4
{[%clk 0:01:33.3]} 20. axb4 {[%clk 0:01:11.9]} 20... Rxa1 {[%clk 0:01:31.6]} 21.
Bxa1 {[%clk 0:01:11.9]} 21... Bh6 {[%clk 0:01:27.2]} 22. Rf3 {[%clk 0:01:05.2]}
22... c5 {[%clk 0:01:14.8]} 23. Ne6 {[%clk 0:00:22.1]} 23... Bxe6 {[%clk
0:01:07.1]} 24. bxc5 {[%clk 0:00:23]} 24... Qa6 {[%clk 0:00:55.6]} 25. Bd4
{[%clk 0:00:18.7]} 25... Bxf5 {[%clk 0:00:53]} 26. Rxf5 {[%clk 0:00:16.1]} 26...
gxf5 {[%clk 0:00:51.8]} 27. h3 {[%clk 0:00:15.7]} 27... Qa4 {[%clk 0:00:45]} 28.
Qf2 {[%clk 0:00:15.1]} 28... Qxd4 {[%clk 0:00:41.7]} 29. Qg3+ {[%clk 0:00:13.5]}
29... Qg4 {[%clk 0:00:36.1]} 30. hxg4 {[%clk 0:00:12]} 30... Bxe3+ {[%clk
0:00:34]} 31. Kh2 {[%clk 0:00:11.1]} 31... f4 {[%clk 0:00:30.7]} 32. Qf3 {[%clk
0:00:09.7]} 32... Re5 {[%clk 0:00:28.8]} 33. d4 {[%clk 0:00:09]} 33... Bxd4
{[%clk 0:00:27.5]} 34. Qb3 {[%clk 0:00:08.1]} 34... Bxc5 {[%clk 0:00:22]} 35.
Qxb7 {[%clk 0:00:08.1]} 35... Bf8 {[%clk 0:00:20.5]} 36. Qc8 {[%clk 0:00:07.5]}
36... Kg7 {[%clk 0:00:19.7]} 37. Qd7+ {[%clk 0:00:07.4]} 37... Be7 {[%clk
0:00:19.5]} 38. Kh3 {[%clk 0:00:06.2]} 38... Kg6 {[%clk 0:00:19.6]} 39. Qe8+
{[%clk 0:00:05.4]} 39... Kg7 {[%clk 0:00:19.8]} 40. Qd7 {[%clk 0:00:05.6]} 40...
Kh6 {[%clk 0:00:18.3]} 41. Qe8 {[%clk 0:00:04.6]} 41... Kg7 {[%clk 0:00:17.9]}
42. Qd7 {[%clk 0:00:04.5]} 1/2-1/2

[Event "*** SCC Grand Prix: Titled Tuesday Blitz"]
[Site "Chess.com"]
[Date "2020.09.08"]
[Round "6"]
[White "joshuaguo"]
[Black "pitterson"]
[Result "1-0"]
[WhiteElo "2218"]
[BlackElo "2259"]
[TimeControl "180+1"]
[EndTime "11:07:55 PDT"]
[Termination "joshuaguo won on time"]

1. e4 {[%clk 0:03:00.9]} 1... c6 {[%clk 0:02:58.3]} 2. d4 {[%clk 0:03:00.6]}
2... d5 {[%clk 0:02:57.3]} 3. e5 {[%clk 0:03:00.8]} 3... c5 {[%clk 0:02:56.3]}
4. Nf3 {[%clk 0:03:00.4]} 4... Nc6 {[%clk 0:02:53.9]} 5. c4 {[%clk 0:02:54.4]}
5... Bg4 {[%clk 0:02:39]} 6. cxd5 {[%clk 0:02:50]} 6... Nxd4 {[%clk 0:02:30.2]}
7. Nxd4 {[%clk 0:02:36.9]} 7... Bxd1 {[%clk 0:02:25.9]} 8. Bb5+ {[%clk
0:02:36.6]} 8... Qd7 {[%clk 0:02:22.7]} 9. Bxd7+ {[%clk 0:02:15.7]} 9... Kxd7
{[%clk 0:02:19.6]} 10. e6+ {[%clk 0:01:47.7]} 10... Kc8 {[%clk 0:01:43]} 11.
exf7 {[%clk 0:01:07.3]} 11... Nf6 {[%clk 0:01:41.2]} 12. Ne2 {[%clk 0:00:54]}
12... Bxe2 {[%clk 0:01:35.7]} 13. Kxe2 {[%clk 0:00:54.9]} 13... Nxd5 {[%clk
0:01:34.8]} 14. Nc3 {[%clk 0:00:54.9]} 14... e6 {[%clk 0:01:27.5]} 15. Re1
{[%clk 0:00:42.7]} 15... Nxc3+ {[%clk 0:01:16.8]} 16. bxc3 {[%clk 0:00:42.2]}
16... Be7 {[%clk 0:01:16.8]} 17. Kf1 {[%clk 0:00:36.5]} 17... Rf8 {[%clk
0:01:16.5]} 18. Rxe6 {[%clk 0:00:35.6]} 18... Rxf7 {[%clk 0:01:16.4]} 19. Be3
{[%clk 0:00:35.7]} 19... Kd7 {[%clk 0:01:11.3]} 20. Re4 {[%clk 0:00:35]} 20...
Rd8 {[%clk 0:01:04.6]} 21. Rd1+ {[%clk 0:00:31.4]} 21... Kc8 {[%clk 0:01:04.5]}
22. Rxd8+ {[%clk 0:00:31.8]} 22... Kxd8 {[%clk 0:01:04.1]} 23. Ke2 {[%clk
0:00:32.4]} 23... Kd7 {[%clk 0:01:03.5]} 24. Kd3 {[%clk 0:00:29.8]} 24... b6
{[%clk 0:01:00.7]} 25. a4 {[%clk 0:00:29.3]} 25... Bf6 {[%clk 0:00:57.3]} 26.
Kc4 {[%clk 0:00:26.4]} 26... Re7 {[%clk 0:00:38.3]} 27. Rxe7+ {[%clk 0:00:23.2]}
27... Kxe7 {[%clk 0:00:37.9]} 28. a5 {[%clk 0:00:22.6]} 28... Kd7 {[%clk
0:00:36.8]} 29. axb6 {[%clk 0:00:19.7]} 29... axb6 {[%clk 0:00:36.1]} 30. Kb5
{[%clk 0:00:20.3]} 30... Kc7 {[%clk 0:00:18.8]} 31. c4 {[%clk 0:00:20]} 31...
Kb7 {[%clk 0:00:18.9]} 32. f3 {[%clk 0:00:17]} 32... Be5 {[%clk 0:00:18.9]} 33.
h3 {[%clk 0:00:14.8]} 33... Bc3 {[%clk 0:00:18.7]} 34. g4 {[%clk 0:00:14.4]}
34... g6 {[%clk 0:00:17.8]} 35. f4 {[%clk 0:00:13.9]} 35... Bf6 {[%clk
0:00:17.1]} 36. f5 {[%clk 0:00:13.6]} 36... gxf5 {[%clk 0:00:15.2]} 37. gxf5
{[%clk 0:00:14.5]} 37... Bc3 {[%clk 0:00:13.4]} 38. Bf4 {[%clk 0:00:14.6]} 38...
Bf6 {[%clk 0:00:12.7]} 39. Bg3 {[%clk 0:00:13.7]} 39... Bd4 {[%clk 0:00:06.1]}
40. Bh4 {[%clk 0:00:13.8]} 40... Bg7 {[%clk 0:00:05.4]} 41. Bd8 {[%clk
0:00:13.2]} 41... Bf8 {[%clk 0:00:02.3]} 42. Bxb6 {[%clk 0:00:12.8]} 42... Bd6
{[%clk 0:00:02.2]} 43. Bxc5 {[%clk 0:00:12.8]} 43... Bxc5 {[%clk 0:00:01.8]} 44.
Kxc5 {[%clk 0:00:13.7]} 44... Kc7 {[%clk 0:00:01.3]} 45. Kd5 {[%clk 0:00:14.1]}
45... Kd7 {[%clk 0:00:01.1]} 46. c5 {[%clk 0:00:14.6]} 1-0

[Event "*** SCC Grand Prix: Titled Tuesday Blitz"]
[Site "Chess.com"]
[Date "2020.09.08"]
[Round "6"]
[White "K_A_S_T_O_R"]
[Black "blitis"]
[Result "1-0"]
[WhiteElo "2752"]
[BlackElo "2507"]
[TimeControl "180+1"]
[EndTime "11:07:56 PDT"]
[Termination "K_A_S_T_O_R won on time"]

1. e4 {[%clk 0:03:00.9]} 1... c5 {[%clk 0:02:59.7]} 2. Nf3 {[%clk 0:03:00.6]}
2... a6 {[%clk 0:03:00.2]} 3. c4 {[%clk 0:02:59.8]} 3... d6 {[%clk 0:03:00]} 4.
d4 {[%clk 0:02:59.8]} 4... cxd4 {[%clk 0:03:00.9]} 5. Nxd4 {[%clk 0:02:59.9]}
5... Nf6 {[%clk 0:03:01.4]} 6. Nc3 {[%clk 0:03:00.5]} 6... e6 {[%clk 0:03:01.5]}
7. Be2 {[%clk 0:03:00.8]} 7... b6 {[%clk 0:03:01.7]} 8. O-O {[%clk 0:03:01.1]}
8... Bb7 {[%clk 0:03:02.1]} 9. f3 {[%clk 0:03:01.6]} 9... Be7 {[%clk 0:03:02.6]}
10. Be3 {[%clk 0:03:01.5]} 10... O-O {[%clk 0:03:02.8]} 11. Rc1 {[%clk 0:03:02]}
11... Qc7 {[%clk 0:03:02.1]} 12. Kh1 {[%clk 0:03:01]} 12... Nbd7 {[%clk
0:03:02.1]} 13. Qd2 {[%clk 0:03:00.8]} 13... Rac8 {[%clk 0:03:02.2]} 14. Rfd1
{[%clk 0:03:01.4]} 14... Qb8 {[%clk 0:03:02.2]} 15. Bf1 {[%clk 0:02:57]} 15...
Bd8 {[%clk 0:03:02.1]} 16. Nc2 {[%clk 0:02:46.1]} 16... Bc7 {[%clk 0:03:01.3]}
17. Bf4 {[%clk 0:02:46.3]} 17... Ne5 {[%clk 0:02:43.3]} 18. Na3 {[%clk
0:02:38.8]} 18... Rfd8 {[%clk 0:02:41.8]} 19. Bg5 {[%clk 0:02:37]} 19... Ned7
{[%clk 0:02:17.9]} 20. h3 {[%clk 0:02:35.8]} 20... h6 {[%clk 0:02:14.5]} 21. Be3
{[%clk 0:02:23.1]} 21... Ne5 {[%clk 0:02:00.4]} 22. Qf2 {[%clk 0:02:22.1]} 22...
Bc6 {[%clk 0:01:35.1]} 23. Rd2 {[%clk 0:02:09.8]} 23... Qb7 {[%clk 0:01:30.5]}
24. Rcd1 {[%clk 0:02:07.7]} 24... d5 {[%clk 0:01:20.9]} 25. cxd5 {[%clk
0:01:51]} 25... exd5 {[%clk 0:01:21.8]} 26. exd5 {[%clk 0:01:50.8]} 26... Nxd5
{[%clk 0:01:21.3]} 27. Nxd5 {[%clk 0:01:50]} 27... Rxd5 {[%clk 0:01:12.4]} 28.
Rxd5 {[%clk 0:01:48.6]} 28... Bxd5 {[%clk 0:01:13.3]} 29. Bxa6 {[%clk
0:01:45.8]} 29... Qxa6 {[%clk 0:01:10.6]} 30. Rxd5 {[%clk 0:01:45.7]} 30... Re8
{[%clk 0:01:05.5]} 31. Rd1 {[%clk 0:01:20.7]} 31... b5 {[%clk 0:00:55.3]} 32.
Bc5 {[%clk 0:01:09.1]} 32... Qa4 {[%clk 0:00:48.3]} 33. Qd4 {[%clk 0:00:58.9]}
33... Qa8 {[%clk 0:00:41.4]} 34. Qd5 {[%clk 0:00:52.1]} 34... Qb8 {[%clk
0:00:36.8]} 35. Re1 {[%clk 0:00:48.3]} 35... b4 {[%clk 0:00:34.9]} 36. Nc2
{[%clk 0:00:43.3]} 36... Qb5 {[%clk 0:00:33.1]} 37. Nd4 {[%clk 0:00:40.6]} 37...
Qd3 {[%clk 0:00:30.7]} 38. Qe4 {[%clk 0:00:39.3]} 38... Qc4 {[%clk 0:00:26.2]}
39. Nb3 {[%clk 0:00:37.4]} 39... Qa6 {[%clk 0:00:21.3]} 40. f4 {[%clk
0:00:33.6]} 40... Qxa2 {[%clk 0:00:19.6]} 41. Qc2 {[%clk 0:00:32.5]} 41... Rc8
{[%clk 0:00:09.1]} 42. fxe5 {[%clk 0:00:31.9]} 42... Bb6 {[%clk 0:00:07.1]} 43.
Rc1 {[%clk 0:00:19]} 43... Qa4 {[%clk 0:00:02.2]} 44. Qd3 {[%clk 0:00:17.4]} 1-0

[Event "*** SCC Grand Prix: Titled Tuesday Blitz"]
[Site "Chess.com"]
[Date "2020.09.08"]
[Round "6"]
[White "Xeslu"]
[Black "aliba25"]
[Result "0-1"]
[WhiteElo "2325"]
[BlackElo "2566"]
[TimeControl "180+1"]
[EndTime "11:07:57 PDT"]
[Termination "aliba25 won on time"]

1. e4 {[%clk 0:03:00.9]} 1... e6 {[%clk 0:02:59.4]} 2. d3 {[%clk 0:03:00.4]}
2... d5 {[%clk 0:02:59.4]} 3. Nd2 {[%clk 0:03:01.3]} 3... Nf6 {[%clk 0:02:56.6]}
4. Ngf3 {[%clk 0:03:00.4]} 4... Bc5 {[%clk 0:02:56.1]} 5. e5 {[%clk 0:02:45.5]}
5... Nfd7 {[%clk 0:02:53.1]} 6. g3 {[%clk 0:02:36.6]} 6... Nc6 {[%clk
0:02:51.5]} 7. Qe2 {[%clk 0:02:36.4]} 7... O-O {[%clk 0:02:51.3]} 8. Bg2 {[%clk
0:02:35.2]} 8... f6 {[%clk 0:02:51.5]} 9. exf6 {[%clk 0:02:34.6]} 9... Qxf6
{[%clk 0:02:52.4]} 10. O-O {[%clk 0:02:33.3]} 10... e5 {[%clk 0:02:51.3]} 11.
Nb3 {[%clk 0:02:28.3]} 11... Bd6 {[%clk 0:02:50.9]} 12. Bg5 {[%clk 0:02:19.9]}
12... Qf7 {[%clk 0:02:50.2]} 13. c3 {[%clk 0:01:57]} 13... h6 {[%clk 0:02:47.1]}
14. Be3 {[%clk 0:01:50.4]} 14... Nf6 {[%clk 0:02:41.8]} 15. Bc5 {[%clk
0:01:32.6]} 15... Bg4 {[%clk 0:02:29.2]} 16. h3 {[%clk 0:01:32.1]} 16... Be6
{[%clk 0:02:20.7]} 17. Bxd6 {[%clk 0:01:31.1]} 17... cxd6 {[%clk 0:02:20.6]} 18.
Nfd2 {[%clk 0:01:23]} 18... Nd7 {[%clk 0:02:13.8]} 19. f4 {[%clk 0:01:13.1]}
19... Qg6 {[%clk 0:02:12.4]} 20. Kh2 {[%clk 0:00:59]} 20... Rae8 {[%clk
0:02:10.5]} 21. fxe5 {[%clk 0:00:47.3]} 21... dxe5 {[%clk 0:02:11.4]} 22. Rxf8+
{[%clk 0:00:47.3]} 22... Rxf8 {[%clk 0:02:07.7]} 23. Rf1 {[%clk 0:00:43.1]}
23... Re8 {[%clk 0:02:03]} 24. Qf3 {[%clk 0:00:33.1]} 24... b6 {[%clk
0:01:58.2]} 25. c4 {[%clk 0:00:27.5]} 25... e4 {[%clk 0:01:55.4]} 26. dxe4
{[%clk 0:00:19.9]} 26... dxc4 {[%clk 0:01:55.1]} 27. Nc1 {[%clk 0:00:16.9]}
27... Nde5 {[%clk 0:01:52.6]} 28. Qc3 {[%clk 0:00:16.3]} 28... Rd8 {[%clk
0:01:47.4]} 29. Ne2 {[%clk 0:00:14.6]} 29... Rd3 {[%clk 0:01:45.9]} 30. Qc1
{[%clk 0:00:14.5]} 30... b5 {[%clk 0:01:36]} 31. Nf3 {[%clk 0:00:13.2]} 31...
Nxf3+ {[%clk 0:01:26.4]} 32. Rxf3 {[%clk 0:00:12.6]} 32... Ne5 {[%clk
0:00:55.3]} 33. Rxd3 {[%clk 0:00:11.7]} 33... Nxd3 {[%clk 0:00:55.7]} 34. Qd2
{[%clk 0:00:10.8]} 34... Qf6 {[%clk 0:00:56]} 35. Nf4 {[%clk 0:00:10.7]} 35...
Nc5 {[%clk 0:00:35]} 36. Nxe6 {[%clk 0:00:10.1]} 36... Nxe6 {[%clk 0:00:35]} 37.
Qb4 {[%clk 0:00:10.2]} 37... Qe5 {[%clk 0:00:34.6]} 38. Qa5 {[%clk 0:00:09.6]}
38... Qxb2 {[%clk 0:00:33]} 39. Qxa7 {[%clk 0:00:09.1]} 39... Qe5 {[%clk
0:00:31.9]} 40. Qb6 {[%clk 0:00:08.8]} 40... c3 {[%clk 0:00:31.5]} 41. Qc6
{[%clk 0:00:07.2]} 41... Kh7 {[%clk 0:00:29.7]} 42. a4 {[%clk 0:00:06.6]} 42...
b4 {[%clk 0:00:28.9]} 43. a5 {[%clk 0:00:06.5]} 43... b3 {[%clk 0:00:26.9]} 44.
a6 {[%clk 0:00:05.9]} 44... b2 {[%clk 0:00:25.9]} 45. a7 {[%clk 0:00:06.8]}
45... b1=Q {[%clk 0:00:26]} 46. a8=Q {[%clk 0:00:06.8]} 46... Qe1 {[%clk
0:00:25.5]} 0-1